{"text_format":"3","workbook":"xlsx","n_sheets":1,"sheets":["Išlaidų ataskaita"],"not_rendered":{"defined_names":4},"read":"whole","date_system":"1900"}

{"sheet":"Išlaidų ataskaita","index":0,"n_rows":14,"n_cols":14,"rows_kept":14,"merged":[[0,1,0,5],[2,3,2,5],[2,6,2,7],[2,8,2,10],[4,3,4,5],[4,6,4,7],[4,8,4,10]]}
[null,"Kelionės išlaidų ataskaita"]
[]
[null,"Vardas ir pavardė","Kotryna Butkienė","Patvirtino",null,null,"Robertas Mickus",null,"Už kilometrą kompensuojama suma",null,null,{"v":0.32,"d":"0.32 EUR"}]
[]
[null,"Skyrius","Pardavimas","Pateikimo data",null,null,{"$f":"TODAY()","v":"2018-05-11"},null,"Bendra kompensuojama suma",null,null,{"$f":"BendraKompensuojamaSuma","v":{"v":550.3846011865525,"d":"550.38 EUR"}}]
[]
[null,"Laikotarpis",{"$f":"IF(MIN(B10:B13)=MAX(B10:B13),TEXT(MIN(B10:B13),\"yy-mm-dd\"),\"Nuo \"&TEXT(MIN(B10:B13),\"yy-mm-dd\")&\" iki \"&TEXT(MAX(B10:B13),\"yy-mm-dd\"))","v":"Nuo 18-04-11 iki 18-04-16"}]
[]
[null,"Data","Išlaidų aprašymas","Lėktuvo bilieto kaina","Apgyvendinimas","Antžeminis transportas \n(degalai, automobilio nuoma, taksi)","Maistas ir arbatpinigiai","Konferencijos ir seminarai","Kilometrai","Transporto išlaidų kompensavimas","Įvairios išlaidos","Valiutos kursas","Išlaidų valiuta","Iš viso"]
[null,{"$f":"TODAY()-30","v":"2018-04-11"},"Kelionė į kliento biurą",{"v":350,"d":"350.00"},{"v":150,"d":"150.00"},{"v":45,"d":"45.00"},{"v":12,"d":"12.00"},{"v":50,"d":"50.00"},{"v":35,"d":"35.00"},{"$f":"IF('Išlaidų ataskaita'!I10<>\"\",'Išlaidų ataskaita'!I10*KilometražoTarifas,\"\")","v":{"v":11.200000000000001,"d":"11.20"}},null,{"v":1.517,"d":"1.52"},"CAD",{"$f":"IFERROR(IF(OR('Išlaidų ataskaita'!$L10=\"\",'Išlaidų ataskaita'!$L10=1),SUM('Išlaidų ataskaita'!$J10:$K10,'Išlaidų ataskaita'!$D10:$H10)*1,SUM('Išlaidų ataskaita'!$J10:$K10,'Išlaidų ataskaita'!$D10:$H10)/'Išlaidų ataskaita'!$L10),\"\")","v":{"v":407.5148319050759,"d":"407.51 EUR"}}]
[null,{"$f":"TODAY()-30","v":"2018-04-11"},"Pietūs su klientu",{"$nulls":3},{"v":24.3,"d":"24.30"},null,{"v":12,"d":"12.00"},{"$f":"IF('Išlaidų ataskaita'!I11<>\"\",'Išlaidų ataskaita'!I11*KilometražoTarifas,\"\")","v":3.84},null,{"v":1.517,"d":"1.52"},"CAD",{"$f":"IFERROR(IF(OR('Išlaidų ataskaita'!$L11=\"\",'Išlaidų ataskaita'!$L11=1),SUM('Išlaidų ataskaita'!$J11:$K11,'Išlaidų ataskaita'!$D11:$H11)*1,SUM('Išlaidų ataskaita'!$J11:$K11,'Išlaidų ataskaita'!$D11:$H11)/'Išlaidų ataskaita'!$L11),\"\")","v":{"v":18.5497692814766,"d":"18.55 EUR"}}]
[null,"2018-04-11","Popietės seminaras",{"$nulls":4},{"v":100,"d":"100.00"},{"v":6,"d":"6.00"},{"$f":"IF('Išlaidų ataskaita'!I12<>\"\",'Išlaidų ataskaita'!I12*KilometražoTarifas,\"\")","v":1.92},null,{"v":1,"d":"1.00"},"EUR",{"$f":"IFERROR(IF(OR('Išlaidų ataskaita'!$L12=\"\",'Išlaidų ataskaita'!$L12=1),SUM('Išlaidų ataskaita'!$J12:$K12,'Išlaidų ataskaita'!$D12:$H12)*1,SUM('Išlaidų ataskaita'!$J12:$K12,'Išlaidų ataskaita'!$D12:$H12)/'Išlaidų ataskaita'!$L12),\"\")","v":{"v":101.92,"d":"101.92 EUR"}}]
[null,{"$f":"TODAY()-25","v":"2018-04-16"},"Kelionė į oro uostą",{"$nulls":5},{"v":70,"d":"70.00"},{"$f":"IF('Išlaidų ataskaita'!I13<>\"\",'Išlaidų ataskaita'!I13*KilometražoTarifas,\"\")","v":{"v":22.400000000000002,"d":"22.40"}},null,{"v":1,"d":"1.00"},"EUR",{"$f":"IFERROR(IF(OR('Išlaidų ataskaita'!$L13=\"\",'Išlaidų ataskaita'!$L13=1),SUM('Išlaidų ataskaita'!$J13:$K13,'Išlaidų ataskaita'!$D13:$H13)*1,SUM('Išlaidų ataskaita'!$J13:$K13,'Išlaidų ataskaita'!$D13:$H13)/'Išlaidų ataskaita'!$L13),\"\")","v":{"v":22.400000000000002,"d":"22.40 EUR"}}]
[null,"Iš viso",null,{"$f":"SUBTOTAL(109,Išlaidos[Lėktuvo bilieto kaina])","v":{"v":350,"d":"350.00"}},{"$f":"SUBTOTAL(109,Išlaidos[Apgyvendinimas])","v":{"v":150,"d":"150.00"}},{"$f":"SUBTOTAL(109,Išlaidos[Antžeminis transportas \n(degalai, automobilio nuoma, taksi)])","v":{"v":45,"d":"45.00"}},{"$f":"SUBTOTAL(109,Išlaidos[Maistas ir arbatpinigiai])","v":{"v":36.3,"d":"36.30"}},{"$f":"SUBTOTAL(109,Išlaidos[Konferencijos ir seminarai])","v":{"v":150,"d":"150.00"}},{"$f":"SUBTOTAL(109,Išlaidos[Kilometrai])","v":{"v":123,"d":"123.00"}},{"$f":"SUBTOTAL(109,Išlaidos[Transporto išlaidų kompensavimas])","v":39.36},{"$f":"SUBTOTAL(109,Išlaidos[Įvairios išlaidos])","v":{"v":0,"d":"0.00"}},null,null,{"$f":"SUBTOTAL(109,Išlaidos[Iš viso])","v":{"v":550.3846011865525,"d":"550.38 EUR"}}]